bitfinex/quotes_SOLUSD_20250131
["timestamp","ask_amount","ask_price","bid_price","bid_amount"]
[1738346465785,0.79681068,235.35,235.32,1.0]
[1738346467315,0.55039,235.34,235.32,1.0]
[1738346467607,0.7969203,235.33,235.32,1.0]
[1738346468612,1.2218203,235.33,235.32,1.0]
[1738346469812,1.2218203,235.33,235.3,1.0]
[1738346470604,1.2218203,235.33,235.32,1.0]
[1738346477325,1.2218203,235.33,235.29,1.03]
[1738346477326,2.2841203,235.33,235.29,1.03]
[1738346478116,0.79688205,235.37,235.3,8.28057376]
[1738346478299,4.367,235.36,235.3,8.28057376]
[1738346478623,5.16383981,235.36,235.32,8.28057376]
[1738346479416,5.16383981,235.36,235.31,9.28057376]
[1738346479593,2.88,235.35,235.31,9.28057376]
[1738346479915,2.88,235.35,235.31,1.0]
[1738346480117,2.88,235.36,235.35,1.0]
[1738346480306,2.88,235.36,235.35,9.28057376]
[1738346480695,0.4248,235.37,235.35,1.0]
[1738346481102,2.88,235.38,235.35,1.0]
[1738346482015,0.79668426,235.41,235.35,9.28057376]
[1738346482223,2.88,235.4,235.36,8.28057376]
[1738346482421,0.79668426,235.41,235.36,8.28057376]
[1738346482596,2.88,235.4,235.36,8.28057376]
[1738346482998,3.67662436,235.4,235.36,8.28057376]
[1738346483207,3.67662436,235.4,235.35,1.0]
[1738346483402,0.25098,235.39,235.34,1.583]
[1738346483607,0.12549,235.37,235.34,1.583]
[1738346483924,0.79678417,235.36,235.34,1.583]
[1738346484816,0.79678417,235.36,235.31,1.0]
[1738346485419,0.79678417,235.36,235.32,0.03]
[1738346487322,2.88,235.4,235.32,0.03]
[1738346487323,0.79687035,235.35,235.32,0.03]
[1738346487525,0.12549,235.38,235.32,0.03]
[1738346487725,0.79685626,235.37,235.32,0.03]
[1738346488124,0.12549,235.36,235.32,0.03]
[1738346488316,0.79687164,235.35,235.32,0.03]
[1738346489025,0.79680367,235.39,235.32,0.03]
[1738346489208,0.12549,235.38,235.32,0.03]
[1738346489409,0.79680648,235.37,235.32,0.03]
[1738346490723,0.79681176,235.44,235.35,1.0]
[1738346490909,2.88,235.36,235.35,9.28057376]
[1738346491104,0.79681176,235.44,235.35,9.28057376]
[1738346491105,2.88,235.38,235.35,1.0]
[1738346495228,2.88,235.38,235.33,1.0]
[1738346495603,0.79668123,235.37,235.33,1.0]
[1738346495810,0.79668123,235.37,235.32,0.03]
[1738346497929,0.79668123,235.37,235.28,9.44817376]
[1738346498230,0.79668123,235.37,235.28,1.1676]
[1738346499622,0.79668123,235.37,235.28,9.44817376]
[1738346500126,0.79668123,235.37,235.32,8.28057376]
[1738346500723,0.79668123,235.37,235.31,8.28057376]
[1738346500907,2.88,235.36,235.31,8.28057376]
[1738346501109,2.88,235.36,235.32,8.28057376]
[1738346501407,2.88,235.36,235.33,8.28057376]
[1738346502132,2.88,235.36,235.32,8.28057376]
[1738346503231,2.88,235.36,235.31,8.28057376]
[1738346503814,2.88,235.36,235.29,8.28057376]
[1738346504008,0.7967661,235.35,235.29,8.28057376]
[1738346504215,0.7967661,235.35,235.28,1.1676]
[1738346504411,0.12549,235.34,235.28,1.1676]
[1738346504616,0.79692357,235.33,235.28,1.1676]
[1738346504810,0.79692357,235.33,235.26,6.0165]
[1738346507544,2.88,235.36,235.26,14.29707376]
[1738346507545,0.7969318,235.35,235.26,14.29707376]
[1738346508416,0.25098,235.34,235.26,6.0165]
[1738346508617,0.79692465,235.33,235.26,6.0165]
[1738346508922,0.79692465,235.33,235.25,0.03]
[1738346508923,0.12549,235.32,235.25,0.03]
[1738346509129,0.79695686,235.31,235.26,0.03]
[1738346510915,0.79702102,235.3,235.26,0.03]
[1738346511230,0.12549,235.32,235.26,0.03]
[1738346511431,0.79700826,235.31,235.26,0.03]
[1738346512425,0.12549,235.3,235.26,0.03]
[1738346512613,0.79700385,235.29,235.26,0.03]
[1738346514715,0.79700344,235.35,235.26,0.03]
[1738346514917,0.79700344,235.35,235.26,8.31057376]
[1738346515117,0.25098,235.34,235.26,8.31057376]
[1738346515327,0.12549,235.32,235.26,8.31057376]
[1738346515518,0.7969324,235.31,235.26,8.31057376]
[1738346515842,0.7969324,235.31,235.26,0.03]
[1738346516542,0.79693416,235.32,235.26,0.03]
[1738346516736,0.79693416,235.32,235.26,8.31057376]
[1738346516935,0.9224214,235.34,235.28,8.28057376]
[1738346517137,0.9224214,235.34,235.27,8.28057376]
[1738346518430,0.79689325,235.36,235.3,8.28057376]
[1738346518636,2.88,235.35,235.32,8.28057376]
[1738346519025,2.88,235.35,235.31,8.28057376]
[1738346519328,2.88,235.35,235.3,8.28057376]
[1738346520044,0.063,235.38,235.31,8.28057376]
[1738346520231,2.88,235.36,235.31,8.28057376]
[1738346520631,0.85975735,235.37,235.32,8.28057376]
[1738346520949,0.063,235.37,235.34,8.28057376]
[1738346521252,2.943,235.37,235.33,8.28057376]
[1738346521418,2.943,235.37,235.32,8.28057376]
[1738346522059,2.943,235.37,235.33,8.28057376]
[1738346522234,0.063,235.35,235.33,8.28057376]
[1738346522552,0.063,235.35,235.26,0.03]
[1738346522756,0.063,235.35,235.3,8.28057376]
[1738346523416,0.063,235.35,235.31,8.28057376]
[1738346523617,0.063,235.35,235.32,8.28057376]
[1738346524552,0.063,235.35,235.34,8.28057376]
[1738346525051,0.063,235.35,235.33,8.28057376]
[1738346525952,0.063,235.35,235.34,16.27117376]
[1738346526339,0.063,235.35,235.34,7.9906]
[1738346526656,0.063,235.35,235.28,16.27117376]
[1738346527847,0.063,235.35,235.3,8.28057376]
[1738346528030,0.063,235.35,235.31,8.28057376]
[1738346528230,0.063,235.35,235.3,8.28057376]
[1738346531459,0.063,235.35,235.31,8.28057376]
[1738346531757,0.063,235.35,235.34,8.28057376]
[1738346532128,0.063,235.35,235.33,8.28057376]
[1738346532543,0.063,235.35,235.32,8.28057376]
[1738346532956,0.063,235.35,235.33,8.28057376]
[1738346533141,0.063,235.35,235.34,8.28057376]
[1738346533461,0.063,235.35,235.33,8.28057376]
[1738346535039,0.063,235.35,235.28,1.5106]
[1738346535455,0.063,235.35,235.26,6.662]
[1738346535659,0.063,235.35,235.26,14.94257376]
[1738346536044,0.85978965,235.35,235.27,8.28057376]
[1738346536458,0.063,235.35,235.29,8.28057376]
[1738346537363,0.063,235.35,235.31,8.28057376]
[1738346538060,0.063,235.35,235.32,8.28057376]
[1738346538651,0.063,235.35,235.31,8.28057376]
[1738346539454,0.063,235.35,235.3,8.28057376]
[1738346539661,0.063,235.35,235.26,6.662]
[1738346539860,0.85983072,235.35,235.26,14.94257376]
[1738346540363,0.85983072,235.35,235.26,0.03]
[1738346541263,0.25098,235.34,235.26,0.03]
[1738346541455,0.85983072,235.35,235.26,0.0001]
[1738346541456,0.25098,235.32,235.26,0.0001]
[1738346541756,0.12549,235.3,235.26,0.0001]
[1738346541948,0.25098,235.28,235.26,0.0001]
[1738346542146,7.38501734,235.27,235.26,0.0001]
[1738346543163,1.55339734,235.27,235.26,0.0001]
[1738346547469,1.04809734,235.27,235.26,0.0001]
[1738346549765,6.5484,235.24,235.06,8.28057376]
[1738346549958,0.12549,235.25,234.96,54.40169504]
[1738346549959,0.25098,235.16,235.04,0.03]
[1738346550160,0.25098,235.14,235.04,0.03]
[1738346550361,0.25098,235.12,235.04,0.03]
[1738346550554,0.79787349,235.11,235.04,0.03]
[1738346550751,2.88,235.1,235.04,0.03]
[1738346551065,0.25098,235.08,234.94,8.17769831]
[1738346551273,3.88,235.1,234.94,8.17769831]
[1738346551274,0.25098,235.06,234.94,6.64579831]
[1738346551476,0.79794016,235.05,234.95,8.28057376]
[1738346551664,0.12549,235.04,235.02,0.03]
[1738346551974,1.04895201,235.03,235.02,0.03]
[1738346553367,1.17444201,235.03,235.02,0.03]
[1738346554359,0.37647,235.03,235.02,0.03]
[1738346556467,0.25098,235.03,235.02,0.03]
[1738346556662,1.04885164,235.03,235.02,0.03]
[1738346556871,0.25098,235.03,235.02,0.03]
[1738346557079,2.92,235.05,235.02,0.03]
[1738346557656,2.92,235.05,235.03,13.04388519]
[1738346557862,2.92,235.05,235.02,13.07388519]
[1738346558160,2.92,235.05,235.02,0.03]
[1738346558565,0.12549,235.08,235.02,0.03]
[1738346558879,0.12549,235.08,235.02,13.07388519]
[1738346559079,0.92322337,235.08,235.02,13.07388519]
[1738346560384,0.25098,235.1,235.02,13.07388519]
[1738346560690,0.79773193,235.16,235.06,13.04388519]
[1738346560984,0.12549,235.13,235.05,13.04388519]
[1738346561180,0.7975984,235.12,235.04,13.04388519]
[1738346561884,0.7975984,235.12,235.02,13.07388519]
[1738346562094,0.7975984,235.12,235.02,0.03]
[1738346562294,0.12549,235.11,235.02,0.03]
[1738346562481,0.79765622,235.1,235.03,13.04388519]
[1738346563467,0.79765646,235.1,235.03,13.04388519]
[1738346564386,0.12549,235.09,235.02,13.07388519]
[1738346566078,2.92,235.14,235.02,0.03]
[1738346566079,0.12549,235.07,235.02,0.03]
[1738346566586,0.12549,235.12,235.02,0.03]
[1738346566888,0.12549,235.1,235.02,0.03]
[1738346567088,0.12549,235.08,235.02,0.03]
[1738346567394,0.12549,235.06,235.02,0.03]
[1738346567771,0.12549,235.1,235.02,0.03]
[1738346568085,0.25098,235.08,235.02,0.03]
[1738346568286,0.25098,235.06,235.02,0.03]
[1738346568493,0.12549,235.04,235.02,0.03]
[1738346568987,0.92330649,235.08,235.02,0.03]
[1738346569188,0.12549,235.08,235.03,13.04388519]
[1738346569395,0.12549,235.08,235.04,13.04388519]
[1738346569579,0.12549,235.08,235.03,13.04388519]
[1738346569785,0.12549,235.08,235.02,13.07388519]
[1738346570300,0.12549,235.08,235.04,13.04388519]
[1738346570488,0.12549,235.08,235.03,13.04388519]
[1738346572298,0.12549,235.08,235.02,13.07388519]
[1738346573469,2.963,235.09,235.03,13.04388519]
[1738346573798,0.063,235.09,235.04,13.04388519]
[1738346573973,0.063,235.09,235.02,0.03]
[1738346574174,0.12549,235.08,235.02,0.03]
[1738346576385,0.12549,235.06,235.02,0.03]
[1738346576584,0.79768945,235.07,235.02,0.03]
[1738346576786,0.063,235.09,235.02,0.03]
[1738346577884,0.25098,235.08,235.02,0.03]
[1738346578194,0.12549,235.06,235.02,0.03]
[1738346578994,0.25098,235.06,235.02,0.03]
[1738346579302,0.12549,235.04,235.02,0.03]
[1738346580295,0.12549,235.08,235.02,0.03]
[1738346580490,0.25098,235.06,235.02,0.03]
[1738346580793,0.12549,235.04,235.02,0.03]
[1738346581376,0.12549,235.07,235.02,0.03]
[1738346581576,0.12549,235.05,235.02,0.03]
[1738346582502,0.92330955,235.05,235.02,0.03]
[1738346583594,0.79787158,235.04,235.02,0.03]
[1738346584199,0.12549,235.03,235.02,0.03]
[1738346584791,0.25098,235.06,235.02,0.03]
[1738346584987,0.25098,235.04,235.02,0.03]
[1738346585188,1.04897579,235.03,235.02,0.03]
[1738346586502,0.25098,235.03,235.02,0.03]
[1738346586797,0.12549,235.03,235.02,0.03]
[1738346589085,3.02549,235.03,235.02,0.03]
[1738346591601,2.9,235.03,235.02,0.03]
[1738346593002,0.12549,235.07,235.02,0.03]
[1738346593183,0.12549,235.05,235.02,0.03]
[1738346594097,0.79780964,235.05,235.02,0.03]
[1738346595003,0.18849,235.04,235.02,0.03]
[1738346597292,0.063,235.04,235.02,8.3762876]
[1738346597888,0.063,235.04,235.03,8.3462876]
[1738346599086,0.063,235.04,235.03,12.6009876]
[1738346600699,0.063,235.04,235.03,13.0318271]
[1738346600894,0.063,235.09,235.03,13.0318271]
[1738346601205,0.063,235.09,235.08,14.5557271]
[1738346601592,0.063,235.09,235.08,21.2056271]
[1738346601788,0.063,235.09,235.08,34.2374542]
[1738346602115,0.063,235.09,235.08,21.2056271]
[1738346604107,0.063,235.09,235.08,25.4594271]
[1738346605113,0.063,235.09,235.08,38.4912542]
[1738346605312,0.063,235.09,235.08,25.4594271]
[1738346605612,0.063,235.09,235.08,38.4912542]
[1738346607411,0.063,235.09,235.08,1.5239]
[1738346607619,0.063,235.09,235.05,4.2544]
[1738346607993,0.063,235.09,235.05,17.2862271]
[1738346608915,0.063,235.09,235.06,13.0318271]
[1738346610225,0.063,235.09,235.07,13.0318271]
[1738346610402,0.063,235.09,235.08,13.0318271]
[1738346611722,0.063,235.09,235.08,17.2856271]
[1738346612040,0.063,235.09,235.07,13.0318271]
[1738346612197,0.063,235.09,235.08,13.0318271]
[1738346612527,0.063,235.09,235.08,26.0636542]
[1738346612710,0.063,235.09,235.08,13.0318271]
[1738346613829,0.063,235.09,235.08,30.3174542]
[1738346616543,0.063,235.09,235.08,30.3174542]
[1738346621419,0.063,235.09,235.08,13.0318271]
[1738346622234,0.063,235.09,235.07,13.0318271]
[1738346623600,0.063,235.09,235.04,0.03]
[1738346623601,0.063,235.09,235.05,13.0318271]
[1738346623909,0.063,235.09,235.04,0.03]
[1738346624700,0.12549,235.08,235.04,0.03]
[1738346627730,0.79771619,235.07,235.04,0.03]
[1738346628940,0.92322895,235.08,235.04,0.03]
[1738346630020,0.12549,235.07,235.04,0.03]
[1738346630337,0.12549,235.05,235.04,0.03]
[1738346631137,0.12549,235.06,235.04,0.03]
[1738346633017,0.6312,235.09,235.05,8.34588602]
[1738346633018,0.063,235.09,235.05,8.34588602]
[1738346634137,0.18849,235.09,235.05,8.34588602]
[1738346634542,0.18849,235.09,235.04,13.06496831]
[1738346635247,0.063,235.09,235.06,13.03496831]
[1738346635548,0.063,235.09,235.07,13.03496831]
[1738346636159,0.063,235.09,235.08,13.03496831]
[1738346638065,0.063,235.09,235.05,13.03496831]
[1738346640963,0.063,235.09,235.07,13.03496831]
[1738346641933,0.063,235.09,235.08,13.03496831]
[1738346643849,0.063,235.09,235.08,17.28876831]
[1738346644163,0.063,235.09,235.08,31.88013662]
[1738346644463,0.063,235.09,235.08,32.88013662]
[1738346644827,0.063,235.09,235.08,31.88013662]
[1738346646344,0.063,235.09,235.08,18.84516831]
[1738346647656,0.063,235.09,235.08,31.88013662]
[1738346648847,0.063,235.09,235.08,32.88013662]
[1738346649147,0.063,235.09,235.08,31.88013662]
[1738346649538,0.063,235.09,235.08,32.88013662]
[1738346649737,0.79715838,235.25,235.08,43.51473662]
[1738346649942,3.4482,235.27,235.21,13.03496831]
[1738346650151,55.163,235.28,235.21,13.03496831]
[1738346650336,0.12549,235.26,235.17,13.03496831]
[1738346650655,0.79715099,235.25,235.18,13.03496831]
[1738346651473,0.79715099,235.25,235.17,13.03496831]
[1738346651652,0.79715099,235.25,235.12,13.03496831]
[1738346651653,0.12549,235.24,235.12,13.03496831]
[1738346651853,0.12549,235.22,235.12,13.03496831]
[1738346652276,0.25098,235.2,235.12,13.03496831]
[1738346652573,0.25098,235.2,235.09,13.03496831]
[1738346652574,0.25098,235.18,235.09,13.03496831]
[1738346652775,0.25098,235.18,235.1,13.03496831]
[1738346652955,0.12549,235.21,235.11,13.03496831]
[1738346653276,0.79734053,235.2,235.11,13.03496831]
[1738346653577,0.79734053,235.2,235.12,13.03496831]
[1738346653776,0.7972802,235.22,235.14,13.03496831]
[1738346654152,0.25098,235.21,235.13,13.03496831]
[1738346654348,0.25098,235.19,235.1,13.03496831]
[1738346654568,0.12549,235.17,235.1,13.03496831]
[1738346655059,0.12549,235.17,235.11,13.03496831]
[1738346655245,0.25098,235.21,235.11,13.03496831]
[1738346655443,0.25098,235.19,235.11,13.03496831]
[1738346655675,0.12549,235.17,235.11,13.03496831]
[1738346656185,0.12549,235.21,235.11,13.03496831]
[1738346656472,0.12549,235.19,235.1,13.03496831]
[1738346656677,0.79740837,235.18,235.1,13.03496831]
[1738346657075,0.79740837,235.18,235.09,13.03496831]
[1738346657391,3.00549,235.17,235.05,13.03496831]
[1738346657553,0.12549,235.15,235.04,13.06496831]
[1738346657752,0.12549,235.13,235.04,13.06496831]
[1738346657954,0.12549,235.13,235.05,13.03496831]
[1738346658385,0.12549,235.15,235.05,13.03496831]
[1738346658556,0.12549,235.13,235.05,13.03496831]
[1738346658757,0.79757235,235.12,235.05,13.03496831]
[1738346658960,0.12549,235.13,235.05,13.03496831]
[1738346659154,0.12549,235.15,235.04,13.06496831]
[1738346659372,0.69369,235.13,235.04,0.03]
[1738346659574,0.25098,235.11,235.04,0.03]
[1738346659771,0.12549,235.09,235.04,0.03]
[1738346659966,0.25098,235.07,235.04,0.03]
[1738346660253,0.25098,235.05,235.04,0.03]
[1738346661292,0.25098,235.11,235.04,0.03]
[1738346661454,0.25098,235.09,235.04,0.03]
[1738346661660,0.25098,235.07,235.04,0.03]
[1738346661849,0.25098,235.05,235.04,0.03]
[1738346662303,0.25098,235.05,235.04,0.0001]
[1738346662553,0.25098,235.03,234.9,13.03496831]
[1738346662789,0.25098,235.01,234.9,13.03496831]
[1738346662956,0.25098,234.99,234.91,13.03496831]
[1738346663296,0.12549,234.97,234.92,13.03496831]
[1738346664169,0.25098,234.95,234.92,13.03496831]
[1738346664807,0.37647,235.0,234.92,13.03496831]
[1738346665076,0.37647,234.98,234.92,13.03496831]
[1738346665286,0.37647,234.98,234.93,13.03496831]
[1738346665861,0.37647,234.98,234.96,13.03496831]
[1738346666905,2.96,235.02,234.97,13.03496831]
[1738346667081,0.79791706,235.01,234.96,13.03496831]
[1738346667290,0.25098,235.0,234.96,13.03496831]
[1738346668012,0.12549,234.98,234.92,13.03496831]
[1738346668183,0.12549,234.98,234.94,13.03496831]
[1738346668385,0.12549,234.98,234.95,13.03496831]
[1738346669005,0.79799226,235.01,234.95,13.03496831]
[1738346669381,0.12549,235.0,234.95,13.03496831]
[1738346669580,0.12549,235.0,234.96,13.03496831]
[1738346670420,0.25098,235.01,234.96,13.03496831]
[1738346671097,2.98,235.03,234.98,13.03496831]
[1738346671306,0.25098,235.02,234.98,13.03496831]
[1738346671611,1.36605072,235.09,234.98,13.03496831]
[1738346671778,2.98,235.08,234.99,13.03496831]
[1738346672109,0.25098,235.06,234.96,13.03496831]
[1738346672320,0.25098,235.04,234.96,13.03496831]
[1738346672516,0.12549,235.02,234.97,13.03496831]
[1738346673021,0.12549,235.02,234.96,13.03496831]
[1738346673181,0.12549,235.02,234.95,13.03496831]
[1738346673513,0.25098,235.06,234.95,13.03496831]
[1738346673809,0.25098,235.04,234.95,13.03496831]
[1738346674018,0.12549,235.02,234.95,13.03496831]
[1738346675012,0.12549,235.06,234.95,13.03496831]
[1738346675316,0.12549,235.04,234.96,13.03496831]
[1738346675683,2.96,235.04,234.96,13.03496831]
[1738346675878,0.12549,235.02,234.96,13.03496831]
[1738346676078,0.12549,235.02,234.9,4.2571]
[1738346676079,0.12549,235.02,234.97,13.03496831]
[1738346678110,0.25098,235.02,234.97,13.03496831]
[1738346678594,0.25098,235.02,234.96,8.34830311]
[1738346679195,0.79786825,235.01,234.95,0.03]
[1738346679915,0.12549,235.0,234.95,0.03]
[1738346680220,0.12549,234.98,234.95,0.03]
[1738346680916,0.12549,235.02,234.95,0.03]
[1738346681086,0.12549,235.0,234.95,0.03]
[1738346681413,0.12549,234.98,234.95,0.03]
[1738346682119,0.12549,235.02,234.95,0.03]
[1738346682343,0.12549,235.0,234.95,0.03]
[1738346682495,0.12549,234.98,234.95,0.03]
[1738346682693,0.79815145,234.97,234.95,0.03]
[1738346682893,0.12549,234.96,234.95,0.03]
[1738346683494,0.25098,234.96,234.95,0.0001]
[1738346686294,0.25098,234.96,234.89,0.15]
[1738346686499,0.12549,234.94,234.89,0.15]
[1738346687206,0.12549,234.98,234.89,0.15]
[1738346687391,0.12549,234.96,234.89,0.15]
[1738346687590,0.79816507,234.95,234.89,13.20245794]
[1738346687894,0.79816507,234.95,234.89,0.15]
[1738346688300,1.3663659,235.0,234.9,13.05245794]
[1738346688498,0.12549,234.98,234.89,13.20245794]
[1738346688718,0.12549,234.96,234.89,0.15]
[1738346688918,0.7981675,235.0,234.95,13.05245794]
[1738346689121,0.86098821,235.04,234.95,13.05245794]
[1738346689325,0.86098821,235.04,234.96,13.05245794]
[1738346689830,0.12549,235.03,234.95,13.05245794]
[1738346690725,0.25098,235.01,234.95,13.05245794]
[1738346691038,0.25098,235.01,234.93,13.05245794]
[1738346691039,0.12549,234.99,234.93,13.05245794]
[1738346691237,0.25098,234.99,234.92,13.05245794]
[1738346691742,0.25098,235.03,234.92,13.05245794]
[1738346691944,0.25098,235.01,234.92,13.05245794]
[1738346692242,0.12549,234.99,234.92,13.05245794]
[1738346692613,0.25098,234.99,234.92,13.05245794]
[1738346692813,0.12549,234.99,234.92,13.05245794]
[1738346693017,0.25098,234.99,234.92,13.05245794]
[1738346693319,0.12549,234.97,234.92,13.05245794]
[1738346693833,0.25098,235.01,234.92,13.05245794]
[1738346694014,0.25098,234.99,234.92,13.05245794]
[1738346694419,0.063,235.02,234.93,13.05245794]
[1738346694627,0.063,235.02,234.94,13.05245794]
[1738346694821,0.063,235.02,234.93,13.05245794]
[1738346695023,0.25098,235.01,234.93,13.05245794]
[1738346695218,0.12549,234.99,234.93,13.05245794]
[1738346696157,0.063,235.02,234.94,13.05245794]
[1738346696333,0.25098,235.01,234.94,13.05245794]
[1738346697364,0.25098,235.01,234.95,13.05245794]
[1738346697523,0.25098,235.01,234.96,13.05245794]
[1738346697725,0.25098,235.01,234.97,13.05245794]
[1738346698033,0.25098,235.01,234.96,13.05245794]
[1738346698436,0.25098,235.01,234.97,13.05245794]
[1738346698634,0.25098,235.01,234.96,13.05245794]
[1738346699134,0.25098,235.01,234.95,13.05245794]
[1738346700248,0.25098,235.01,234.94,13.05245794]
[1738346700446,0.25098,235.01,234.95,13.05245794]
[1738346701149,0.79787979,235.0,234.9,7.6406]
[1738346701354,0.79787979,235.0,234.92,13.05245794]
[1738346701355,0.12549,234.99,234.92,13.05245794]
[1738346702254,0.063,235.02,234.92,13.05245794]
[1738346702552,0.12549,235.01,234.93,13.05245794]
[1738346702753,0.12549,234.99,234.93,13.05245794]
[1738346703052,0.12549,234.99,234.94,13.05245794]
[1738346703352,0.86094539,235.02,234.94,13.05245794]
[1738346704754,0.12549,235.01,234.94,8.34982975]
[1738346704948,0.12549,234.99,234.94,8.34982975]
[1738346705252,0.12549,234.99,234.93,8.34982975]
[1738346705423,0.12549,235.01,234.93,8.34982975]
[1738346705627,0.12549,234.99,234.9,9.92052975]
[1738346706160,0.25098,234.97,234.9,8.34982975]
[1738346706462,0.12549,234.95,234.89,8.49982975]
[1738346706633,0.12549,234.95,234.9,8.34982975]
[1738346706831,0.12549,234.95,234.89,0.15]
[1738346706832,0.25098,235.0,234.91,8.34982975]
[1738346707029,0.25098,234.98,234.91,8.34982975]
[1738346707230,0.25098,234.98,234.89,0.15]
[1738346707231,0.12549,234.96,234.9,8.34982975]
[1738346708026,0.12549,234.96,234.89,8.49982975]
[1738346708229,0.25098,235.01,234.89,8.49982975]
[1738346708565,0.25098,234.99,234.89,8.49982975]
[1738346708744,0.25098,234.97,234.9,8.34982975]
[1738346708946,0.12549,234.95,234.9,8.34982975]
[1738346710251,0.063,235.02,234.92,8.34982975]
[1738346710456,0.79802688,235.01,234.93,8.34982975]
[1738346710662,0.12549,235.0,234.92,8.34982975]
[1738346710835,0.79803891,234.99,234.92,8.34982975]
[1738346711652,0.79803891,234.99,234.91,8.34982975]
[1738346711849,0.12549,234.98,234.9,8.34982975]
[1738346712162,0.7981225,234.97,234.89,8.49982975]
[1738346712364,0.12549,234.96,234.89,0.15]
[1738346712971,0.79815125,234.96,234.89,0.15]
[1738346713470,0.12549,234.95,234.89,8.49982975]
[1738346713836,0.25098,234.99,234.91,8.34982975]
[1738346714037,0.79809107,234.98,234.9,8.34982975]
[1738346714760,0.25098,234.97,234.9,8.34982975]
[1738346714935,0.25098,234.97,234.89,8.49982975]
[1738346714936,0.12549,234.95,234.89,8.49982975]
[1738346715858,0.79810449,234.95,234.89,8.49982975]
[1738346716155,0.25098,234.94,234.89,0.15]
[1738346716352,0.25098,234.98,234.89,0.15]
[1738346716670,0.25098,234.96,234.89,8.49982975]
[1738346716840,0.12549,234.94,234.89,8.49982975]
[1738346717643,0.12549,234.92,234.89,0.15]
[1738346718142,0.25098,234.98,234.89,0.15]
[1738346718369,0.25098,234.96,234.89,0.15]
[1738346718658,0.25098,234.94,234.89,0.15]
[1738346718860,0.25098,234.92,234.89,0.15]
[1738346719662,0.25098,234.98,234.89,0.15]
[1738346719868,0.25098,234.96,234.89,0.15]
[1738346720164,0.25098,234.94,234.89,0.15]
[1738346720356,0.25098,234.92,234.89,0.15]
[1738346720555,0.12549,234.9,234.89,0.15]
[1738346722856,0.12549,234.98,234.89,0.15]
[1738346723057,0.12549,234.96,234.89,0.15]
[1738346723261,0.12549,234.94,234.89,0.15]
[1738346723460,0.79822706,234.93,234.89,0.15]
[1738346723667,0.12549,234.92,234.89,0.15]
[1738346723871,0.12549,234.9,234.89,0.15]
[1738346727674,0.25098,234.9,234.89,0.15]
[1738346729451,2.9,234.92,234.89,0.15]
[1738346729847,0.25098,234.91,234.89,8.49982975]
[1738346730472,0.12549,234.91,234.89,8.49982975]
[1738346730674,0.12549,234.92,234.9,8.34982975]
[1738346730868,0.063,234.95,234.91,8.34982975]
[1738346731676,0.31398,234.95,234.91,8.34982975]
[1738346734781,0.31398,234.95,234.9,8.34982975]
[1738346735458,0.31398,234.95,234.91,8.34982975]
[1738346735859,0.31398,234.95,234.9,8.34982975]
[1738346738364,0.31398,234.95,234.89,8.49982975]
[1738346739347,0.31398,234.95,234.89,10.10522975]
[1738346739765,0.31398,234.95,234.89,0.15]
[1738346739975,0.79814951,234.94,234.89,0.15]
[1738346743585,0.12549,234.93,234.89,0.15]
[1738346743776,0.12549,234.94,234.89,0.15]
[1738346744275,0.12549,234.94,234.91,8.34982975]
[1738346744463,0.063,234.95,234.9,8.34982975]
[1738346745183,0.063,234.95,234.89,8.49982975]
[1738346749791,0.12549,234.93,234.89,0.15]
[1738346750088,0.25098,234.91,234.89,0.15]
[1738346750663,0.25098,234.94,234.89,0.15]
[1738346750991,0.25098,234.92,234.89,0.15]
[1738346751997,1.04921179,234.94,234.89,0.15]
[1738346764070,2.9,234.93,234.89,0.15]